{"text_format":"3","workbook":"xlsx","n_sheets":2,"sheets":["SĀKUMS","GADA DARBA LAIKA UZSK. TABULA"],"not_rendered":{"defined_names":2},"read":"whole","date_system":"1900"}

{"sheet":"SĀKUMS","index":0,"n_rows":8,"n_cols":2,"rows_kept":8}
[null,"PAR ŠO VEIDNI"]
[null,"Uzskaitiet savas darba stundas katru dienu, nedēļu, mēnesi un gadu šajā darbinieka darba laika uzskaites kartē."]
[null,"Aizpildiet pamatinformāciju, piemēram, darbinieka vārdu, vadītāja vārdu, e-pasta adresi un tālruņa numuru. "]
[null,"Pievienojiet darba stundas katra mēneša tabulā. Reģistrējiet pastāvīgās darba stundas atsevišķās kolonnās katrai katras nedēļas dienai. "]
[null,"Nostrādāto stundu kopskaits, pastāvīgās darba stundas un virsstundas tiek automātiski aprēķinātas. "]
[null,"Piezīmes."]
[null,"Papildu norādījumi ir sniegti kolonnā A darblapā GADA DARBA LAIKA UZSK. TABULA. Šis teksts ir paslēpts ar nolūku. Lai tekstu noņemtu, atlasiet kolonnu A, pēc tam atlasiet DZĒST. Lai parādītu slēpto tekstu, atlasiet kolonnu A, pēc tam nomainiet fonta krāsu. "]
[null,"Lai iegūtu papildinformāciju par tabulām, nospiediet taustiņu SHIFT un pēc tam F10 tabulā, atlasiet opciju TABULA un pēc tam atlasiet ALTERNATĪVAIS TEKSTS."]

{"sheet":"GADA DARBA LAIKA UZSK. TABULA","index":1,"n_rows":132,"n_cols":15,"rows_kept":132,"merged":[[0,1,0,2],[0,4,0,14],[10,6,10,7],[21,6,21,7],[32,6,32,7],[33,4,33,14],[43,6,43,7],[54,6,54,7],[65,6,65,7],[66,4,66,14],[76,6,76,7],[87,6,87,7],[98,6,98,7],[99,4,99,14],[109,6,109,7],[120,6,120,7],[131,6,131,7]]}
["Izveidojiet dienas, nedēļas, mēneša vai gada darbinieka darba laika uzskaites tabulu šajā darblapā. \nNoderīgi norādījumi par to, kā lietot šo darbgrāmatu, ir šīs kolonnas šūnās. Bultiņa uz leju, lai sāktu darbu.\nŠīs darblapas nosaukums ir šūnā pa labi, bet janvāra, februāra, marta ceturkšņa virsraksts ir šūnā E1.","DARBINIEKS \nDARBA LAIKA UZSKAITES KARTE",null,null,"Janvāris, februāris, marts      Darbinieka darba laika uzskaites karte: Dienas, nedēļas, mēneša, gada"]
["Ievadiet darbinieka vārdu šūnā C2 un pastāvīgās nostrādātās stundas un virsstundas janvāra tabulā, sākot ar šūnu E2.","Darbinieka vārds, uzvārds:",null,null,"Janvāris","1. nedēļa","Virsstundas","2. nedēļa","Virsstundas  ","3. nedēļa","Virsstundas   ","4. nedēļa","Virsstundas    ","5. nedēļa","Virsstundas     "]
["Šūnā C3 ievadiet vadītāja vārdu.","Vadītājs:",null,null,"Pirmdiena",{"v":8,"d":"8.0"}]
["Šūnā C4 ievadiet e-pasta adresi.","E-pasts:",null,null,"Otrdiena",{"v":8,"d":"8.0"},{"v":2,"d":"2.0"}]
["Šūnā C5 ievadiet tālruņa numuru. Nākamais norādījums ir šūnā A9.","Tālrunis:",null,null,"Trešdiena"]
[{"$nulls":4},"Ceturtdiena"]
[{"$nulls":4},"Piektdiena"]
[{"$nulls":4},"Sestdiena"]
["Gada kopējās pastāvīgās nostrādātās stundas tiek automātiski aprēķinātas šūnā C9.","Pastāvīgās darba stundas:",{"$f":"Pastāvīgās_nostrādātās_stundas","v":31},null,"Svētdiena"]
["Gada kopējās pastāvīgās virsstundas tiek automātiski aprēķinātas šūnā C10.","Virsstundas:",{"$f":"Virsstundas","v":4},null,"Nedēļas kopējais stundu skaits",{"$f":"SUM(F3:F9)","v":{"v":16,"d":"16.0"}},{"v":2,"d":"2.0"},{"v":0,"d":"0.0"},{"v":0,"d":"0.0"},{"v":0,"d":"0.0"},{"v":0,"d":"0.0"},{"v":0,"d":"0.0"},{"v":0,"d":"0.0"},{"v":0,"d":"0.0"},{"v":0,"d":"0.0"}]
["Gada kopējās nostrādātās stundas tiek automātiski aprēķinātas šūnā C11. Janvāra kopējās pastāvīgās nostrādātās stundas šūnā F11 un janvāra kopējās virsstundas šūnā I11 tiek aprēķinātas automātiski. Nākamais norādījums ir šūnā A13.","Kopā",{"$f":"Pastāvīgās_nostrādātās_stundas+Virsstundas","v":35},null,{"$f":"TEXT(DATEVALUE(Janvāris[[#Headers],[Janvāris]]&\"  \"&YEAR(TODAY())),\"mmm.\")&\"kopā: Pastāvīgās darba stundas\"","v":"janv.kopā: Pastāvīgās darba stundas"},{"$f":"SUM(Janvāris[1. nedēļa],Janvāris[2. nedēļa],Janvāris[3. nedēļa],Janvāris[4. nedēļa],Janvāris[5. nedēļa])","v":{"v":16,"d":"16.0"}},{"$f":"TEXT(DATEVALUE(Janvāris[[#Headers],[Janvāris]]&\"  \"&YEAR(TODAY())),\"mmm.\")&\" kopā: Virsstundas\"","v":"janv. kopā: Virsstundas"},null,{"$f":"SUM(Janvāris[Virsstundas],Janvāris[[Virsstundas  ]],Janvāris[[Virsstundas   ]],Janvāris[[Virsstundas    ]],Janvāris[[Virsstundas     ]])","v":{"v":2,"d":"2.0"}}]
[]
["Ievadiet pastāvīgās nostrādātās stundas un virsstundas februāra tabulā, sākot ar šūnu E13. Nākamais norādījums ir šūnā A22.",{"$nulls":3},"Februāris","1. nedēļa","Virsstundas","2. nedēļa","Virsstundas  ","3. nedēļa","Virsstundas   ","4. nedēļa","Virsstundas    ","5. nedēļa","Virsstundas     "]
[{"$nulls":4},"Pirmdiena",{"v":8,"d":"8.0"}]
[{"$nulls":4},"Otrdiena",{"v":7,"d":"7.0"},{"v":2,"d":"2.0"}]
[{"$nulls":4},"Trešdiena"]
[{"$nulls":4},"Ceturtdiena"]
[{"$nulls":4},"Piektdiena"]
[{"$nulls":4},"Sestdiena"]
[{"$nulls":4},"Svētdiena"]
[{"$nulls":4},"Nedēļas kopējais stundu skaits",{"$f":"SUM(F14:F20)","v":{"v":15,"d":"15.0"}},{"v":2,"d":"2.0"},{"v":0,"d":"0.0"},{"v":0,"d":"0.0"},{"v":0,"d":"0.0"},{"v":0,"d":"0.0"},{"v":0,"d":"0.0"},{"v":0,"d":"0.0"},{"v":0,"d":"0.0"},{"v":0,"d":"0.0"}]
["Februāra kopējās pastāvīgās nostrādātās stundas šūnā F22 un februāra kopējās virsstundas šūnā I22 tiek aprēķinātas automātiski. Nākamais norādījums ir šūnā A24.",{"$nulls":3},{"$f":"TEXT(DATEVALUE(Februāris[[#Headers],[Februāris]]&\"  \"&YEAR(TODAY())),\"mmm.\")&\"kopā: Pastāvīgās darba stundas\"","v":"febr.kopā: Pastāvīgās darba stundas"},{"$f":"SUM(Februāris[1. nedēļa],Februāris[2. nedēļa],Februāris[3. nedēļa],Februāris[4. nedēļa],Februāris[5. nedēļa])","v":{"v":15,"d":"15.0"}},{"$f":"TEXT(DATEVALUE(Februāris[[#Headers],[Februāris]]&\" \"&YEAR(TODAY())),\"mmm.\")&\" kopā: Virsstundas\"","v":"febr. kopā: Virsstundas"},null,{"$f":"SUM(Februāris[Virsstundas],Februāris[[Virsstundas  ]],Februāris[[Virsstundas   ]],Februāris[[Virsstundas    ]],Februāris[[Virsstundas     ]])","v":{"v":2,"d":"2.0"}}]
[]
["Ievadiet pastāvīgās nostrādātās stundas un virsstundas marta tabulā, sākot ar šūnu E24. Nākamais norādījums ir šūnā A33.",{"$nulls":3},"Marts","1. nedēļa","Virsstundas","2. nedēļa","Virsstundas ","3. nedēļa","Virsstundas  ","4. nedēļa","Virsstundas    ","5. nedēļa","Virsstundas     "]
[{"$nulls":4},"Pirmdiena"]
[{"$nulls":4},"Otrdiena"]
[{"$nulls":4},"Trešdiena"]
[{"$nulls":4},"Ceturtdiena"]
[{"$nulls":4},"Piektdiena"]
[{"$nulls":4},"Sestdiena"]
[{"$nulls":4},"Svētdiena"]
[{"$nulls":4},"Nedēļas kopējais stundu skaits",{"$f":"SUM(F25:F31)","v":{"v":0,"d":"0.0"}},{"v":0,"d":"0.0"},{"v":0,"d":"0.0"},{"v":0,"d":"0.0"},{"v":0,"d":"0.0"},{"v":0,"d":"0.0"},{"v":0,"d":"0.0"},{"v":0,"d":"0.0"},{"v":0,"d":"0.0"},{"v":0,"d":"0.0"}]
["Marta kopējās pastāvīgās nostrādātās stundas šūnā F33 un marta kopējās virsstundas šūnā I33 tiek aprēķinātas automātiski.",{"$nulls":3},{"$f":"TEXT(DATEVALUE(Marts[[#Headers],[Marts]]&\" \"&YEAR(TODAY())),\"mmm.\")&\"kopā: Pastāvīgās darba stundas\"","v":"marts.kopā: Pastāvīgās darba stundas"},{"$f":"SUM(Marts[1. nedēļa],Marts[2. nedēļa],Marts[3. nedēļa],Marts[4. nedēļa],Marts[5. nedēļa])","v":{"v":0,"d":"0.0"}},{"$f":"TEXT(DATEVALUE(Marts[[#Headers],[Marts]]&\" \"&YEAR(TODAY())),\"mmm.\")&\" kopā: Virsstundas\"","v":"marts. kopā: Virsstundas"},null,{"$f":"SUM(Marts[Virsstundas],Marts[[Virsstundas ]],Marts[[Virsstundas  ]],Marts[[Virsstundas    ]],Marts[[Virsstundas     ]])","v":{"v":0,"d":"0.0"}}]
["Aprīļa, maija, jūnija otrā ceturkšņa virsraksts ir šūnā E34. ",{"$nulls":3},"Aprīlis, maijs, jūnijs      Darbinieka darba laika uzskaites karte: Dienas, nedēļas, mēneša, gada"]
["Ievadiet aprīļa pastāvīgās nostrādātās stundas un virsstundas tabulā, sākot ar šūnu E35. Nākamais norādījums ir šūnā A44.",{"$nulls":3},"Aprīlis","1. nedēļa","Virsstundas","2. nedēļa","Virsstundas  ","3. nedēļa","Virsstundas   ","4. nedēļa","Virsstundas    ","5. nedēļa","Virsstundas     "]
[{"$nulls":4},"Pirmdiena"]
[{"$nulls":4},"Otrdiena"]
[{"$nulls":4},"Trešdiena"]
[{"$nulls":4},"Ceturtdiena"]
[{"$nulls":4},"Piektdiena"]
[{"$nulls":4},"Sestdiena"]
[{"$nulls":4},"Svētdiena"]
[{"$nulls":4},"Nedēļas kopējais stundu skaits",{"$f":"SUM(F36:F42)","v":{"v":0,"d":"0.0"}},{"v":0,"d":"0.0"},{"v":0,"d":"0.0"},{"v":0,"d":"0.0"},{"v":0,"d":"0.0"},{"v":0,"d":"0.0"},{"v":0,"d":"0.0"},{"v":0,"d":"0.0"},{"v":0,"d":"0.0"},{"v":0,"d":"0.0"}]
["Aprīļa kopējās pastāvīgās nostrādātās stundas šūnā F44 un aprīļa kopējās virsstundas šūnā I44 tiek aprēķinātas automātiski. Nākamais norādījums ir šūnā A46.",{"$nulls":3},{"$f":"TEXT(DATEVALUE(Aprīlis[[#Headers],[Aprīlis]]&\" \"&YEAR(TODAY())),\"mmm.\")&\"kopā: Pastāvīgās darba stundas\"","v":"apr.kopā: Pastāvīgās darba stundas"},{"$f":"SUM(Aprīlis[1. nedēļa],Aprīlis[2. nedēļa],Aprīlis[3. nedēļa],Aprīlis[4. nedēļa],Aprīlis[5. nedēļa])","v":{"v":0,"d":"0.0"}},{"$f":"TEXT(DATEVALUE(Aprīlis[[#Headers],[Aprīlis]]&\" \"&YEAR(TODAY())),\"mmm.\")&\" kopā: Virsstundas\"","v":"apr. kopā: Virsstundas"},null,{"$f":"SUM(Aprīlis[Virsstundas],Aprīlis[[Virsstundas  ]],Aprīlis[[Virsstundas   ]],Aprīlis[[Virsstundas    ]],Aprīlis[[Virsstundas     ]])","v":{"v":0,"d":"0.0"}}]
[]
["Ievadiet maija pastāvīgās nostrādātās stundas un virsstundas tabulā, sākot ar šūnu E46. Nākamais norādījums ir šūnā A55.",{"$nulls":3},"Maijs","1. nedēļa","Virsstundas","2. nedēļa","Virsstundas  ","3. nedēļa","Virsstundas   ","4. nedēļa","Virsstundas    ","5. nedēļa","Virsstundas     "]
[{"$nulls":4},"Pirmdiena"]
[{"$nulls":4},"Otrdiena"]
[{"$nulls":4},"Trešdiena"]
[{"$nulls":4},"Ceturtdiena"]
[{"$nulls":4},"Piektdiena"]
[{"$nulls":4},"Sestdiena"]
[{"$nulls":4},"Svētdiena"]
[{"$nulls":4},"Nedēļas kopējais stundu skaits",{"$f":"SUM(F47:F53)","v":{"v":0,"d":"0.0"}},{"v":0,"d":"0.0"},{"v":0,"d":"0.0"},{"v":0,"d":"0.0"},{"v":0,"d":"0.0"},{"v":0,"d":"0.0"},{"v":0,"d":"0.0"},{"v":0,"d":"0.0"},{"v":0,"d":"0.0"},{"v":0,"d":"0.0"}]
["Maija kopējās pastāvīgās nostrādātās stundas šūnā F55 un maija kopējās virsstundas šūnā I55 tiek aprēķinātas automātiski. Nākamais norādījums ir šūnā A57.",{"$nulls":3},{"$f":"TEXT(DATEVALUE(Maijs[[#Headers],[Maijs]]&\" \"&YEAR(TODAY())),\"mmm.\")&\"kopā: Pastāvīgās darba stundas\"","v":"maijs.kopā: Pastāvīgās darba stundas"},{"$f":"SUM(Maijs[1. nedēļa],Maijs[2. nedēļa],Maijs[3. nedēļa],Maijs[4. nedēļa],Maijs[5. nedēļa])","v":{"v":0,"d":"0.0"}},{"$f":"TEXT(DATEVALUE(Maijs[[#Headers],[Maijs]]&\" \"&YEAR(TODAY())),\"mmm.\")&\" kopā: Virsstundas\"","v":"maijs. kopā: Virsstundas"},null,{"$f":"SUM(Maijs[Virsstundas],Maijs[[Virsstundas  ]],Maijs[[Virsstundas   ]],Maijs[[Virsstundas    ]],Maijs[[Virsstundas     ]])","v":{"v":0,"d":"0.0"}}]
[]
["Ievadiet jūnija pastāvīgās nostrādātās stundas un virsstundas tabulā, sākot ar šūnu E57. Nākamais norādījums ir šūnā A66.",{"$nulls":3},"Jūnijs","1. nedēļa","Virsstundas","2. nedēļa","Virsstundas  ","3. nedēļa","Virsstundas   ","4. nedēļa","Virsstundas    ","5. nedēļa","Virsstundas     "]
[{"$nulls":4},"Pirmdiena"]
[{"$nulls":4},"Otrdiena"]
[{"$nulls":4},"Trešdiena"]
[{"$nulls":4},"Ceturtdiena"]
[{"$nulls":4},"Piektdiena"]
[{"$nulls":4},"Sestdiena"]
[{"$nulls":4},"Svētdiena"]
[{"$nulls":4},"Nedēļas kopējais stundu skaits",{"$f":"SUM(F58:F64)","v":{"v":0,"d":"0.0"}},{"v":0,"d":"0.0"},{"v":0,"d":"0.0"},{"v":0,"d":"0.0"},{"v":0,"d":"0.0"},{"v":0,"d":"0.0"},{"v":0,"d":"0.0"},{"v":0,"d":"0.0"},{"v":0,"d":"0.0"},{"v":0,"d":"0.0"}]
["Jūnija kopējās pastāvīgās nostrādātās stundas šūnā F66 un jūnija kopējās virsstundas šūnā I66 tiek aprēķinātas automātiski.",{"$nulls":3},{"$f":"TEXT(DATEVALUE(Jūnijs[[#Headers],[Jūnijs]]&\" \"&YEAR(TODAY())),\"mmm.\")&\"kopā: Pastāvīgās darba stundas\"","v":"jūn.kopā: Pastāvīgās darba stundas"},{"$f":"SUM(Jūnijs[1. nedēļa],Jūnijs[2. nedēļa],Jūnijs[3. nedēļa],Jūnijs[4. nedēļa],Jūnijs[5. nedēļa])","v":{"v":0,"d":"0.0"}},{"$f":"TEXT(DATEVALUE(Jūnijs[[#Headers],[Jūnijs]]&\" \"&YEAR(TODAY())),\"mmm.\")&\" kopā: Virsstundas\"","v":"jūn. kopā: Virsstundas"},null,{"$f":"SUM(Jūnijs[Virsstundas],Jūnijs[[Virsstundas  ]],Jūnijs[[Virsstundas   ]],Jūnijs[[Virsstundas    ]],Jūnijs[[Virsstundas     ]])","v":{"v":0,"d":"0.0"}}]
["Jūlija, augusta, septembra trešā ceturkšņa virsraksts ir šūnā E67. ",{"$nulls":3},"Jūlijs, augusts, septembris      Darbinieka darba laika uzskaites karte: Dienas, nedēļas, mēneša, gada"]
["Ievadiet jūlija pastāvīgās nostrādātās stundas un virsstundas tabulā, sākot ar šūnu E68. Nākamais norādījums ir šūnā A77.",{"$nulls":3},"Jūlijs","1. nedēļa","Virsstundas","2. nedēļa","Virsstundas ","3. nedēļa","Virsstundas  ","4. nedēļa","Virsstundas   ","5. nedēļa","Virsstundas     "]
[{"$nulls":4},"Pirmdiena"]
[{"$nulls":4},"Otrdiena"]
[{"$nulls":4},"Trešdiena"]
[{"$nulls":4},"Ceturtdiena"]
[{"$nulls":4},"Piektdiena"]
[{"$nulls":4},"Sestdiena"]
[{"$nulls":4},"Svētdiena"]
[{"$nulls":4},"Nedēļas kopējais stundu skaits",{"$f":"SUM(F69:F75)","v":{"v":0,"d":"0.0"}},{"v":0,"d":"0.0"},{"v":0,"d":"0.0"},{"v":0,"d":"0.0"},{"v":0,"d":"0.0"},{"v":0,"d":"0.0"},{"v":0,"d":"0.0"},{"v":0,"d":"0.0"},{"v":0,"d":"0.0"},{"v":0,"d":"0.0"}]
["Jūlija kopējās pastāvīgās nostrādātās stundas šūnā F77 un jūlija kopējās virsstundas šūnā I77 tiek aprēķinātas automātiski. Nākamais norādījums ir šūnā A79.",{"$nulls":3},{"$f":"TEXT(DATEVALUE(Jūlijs[[#Headers],[Jūlijs]]&\" \"&YEAR(TODAY())),\"mmm.\")&\"kopā: Pastāvīgās darba stundas\"","v":"jūl.kopā: Pastāvīgās darba stundas"},{"$f":"SUM(Jūlijs[1. nedēļa],Jūlijs[2. nedēļa],Jūlijs[3. nedēļa],Jūlijs[4. nedēļa],Jūlijs[5. nedēļa])","v":{"v":0,"d":"0.0"}},{"$f":"TEXT(DATEVALUE(Jūlijs[[#Headers],[Jūlijs]]&\" \"&YEAR(TODAY())),\"mmm.\")&\" kopā: Virsstundas\"","v":"jūl. kopā: Virsstundas"},null,{"$f":"SUM(Jūlijs[Virsstundas],Jūlijs[[Virsstundas ]],Jūlijs[[Virsstundas  ]],Jūlijs[[Virsstundas   ]],Jūlijs[[Virsstundas     ]])","v":{"v":0,"d":"0.0"}}]
[]
["Ievadiet augusta pastāvīgās nostrādātās stundas un virsstundas tabulā, sākot ar šūnu E79. Nākamais norādījums ir šūnā A88.",{"$nulls":3},"Augusts","1. nedēļa","Virsstundas","2. nedēļa","Virsstundas ","3. nedēļa","Virsstundas   ","4. nedēļa","Virsstundas  ","5. nedēļa","Virsstundas    "]
[{"$nulls":4},"Pirmdiena"]
[{"$nulls":4},"Otrdiena"]
[{"$nulls":4},"Trešdiena"]
[{"$nulls":4},"Ceturtdiena"]
[{"$nulls":4},"Piektdiena"]
[{"$nulls":4},"Sestdiena"]
[{"$nulls":4},"Svētdiena"]
[{"$nulls":4},"Nedēļas kopējais stundu skaits",{"$f":"SUBTOTAL(109,Augusts[1. nedēļa])","v":{"v":0,"d":"0.0"}},{"$f":"SUBTOTAL(109,Augusts[Virsstundas])","v":{"v":0,"d":"0.0"}},{"$f":"SUBTOTAL(109,Augusts[2. nedēļa])","v":{"v":0,"d":"0.0"}},{"$f":"SUBTOTAL(109,Augusts[[Virsstundas ]])","v":{"v":0,"d":"0.0"}},{"$f":"SUBTOTAL(109,Augusts[3. nedēļa])","v":{"v":0,"d":"0.0"}},{"$f":"SUBTOTAL(109,Augusts[[Virsstundas   ]])","v":{"v":0,"d":"0.0"}},{"$f":"SUBTOTAL(109,Augusts[4. nedēļa])","v":{"v":0,"d":"0.0"}},{"$f":"SUBTOTAL(109,Augusts[[Virsstundas  ]])","v":{"v":0,"d":"0.0"}},{"$f":"SUBTOTAL(109,Augusts[5. nedēļa])","v":{"v":0,"d":"0.0"}},{"$f":"SUBTOTAL(109,Augusts[[Virsstundas    ]])","v":{"v":0,"d":"0.0"}}]
["Augusta kopējās pastāvīgās nostrādātās stundas šūnā F88 un augusta kopējās virsstundas šūnā I88 tiek aprēķinātas automātiski. Nākamais norādījums ir šūnā A90.",{"$nulls":3},{"$f":"TEXT(DATEVALUE(Augusts[[#Headers],[Augusts]]&\" \"&YEAR(TODAY())),\"mmm.\")&\"kopā: Pastāvīgās darba stundas\"","v":"aug.kopā: Pastāvīgās darba stundas"},{"$f":"SUM(Augusts[1. nedēļa],Augusts[2. nedēļa],Augusts[3. nedēļa],Augusts[4. nedēļa],Augusts[5. nedēļa])","v":{"v":0,"d":"0.0"}},{"$f":"TEXT(DATEVALUE(Augusts[[#Headers],[Augusts]]&\" \"&YEAR(TODAY())),\"mmm.\")&\" kopā: Virsstundas\"","v":"aug. kopā: Virsstundas"},null,{"$f":"SUM(Augusts[Virsstundas],Augusts[[Virsstundas ]],Augusts[[Virsstundas   ]],Augusts[[Virsstundas  ]],Augusts[[Virsstundas    ]])","v":{"v":0,"d":"0.0"}}]
[]
["Ievadiet septembra pastāvīgās nostrādātās stundas un virsstundas tabulā, sākot ar šūnu E90. Nākamais norādījums ir šūnā A99.",{"$nulls":3},"Septembris","1. nedēļa","Virsstundas","2. nedēļa","Virsstundas ","3. nedēļa","Virsstundas  ","4. nedēļa","Virsstundas   ","5. nedēļa","Virsstundas    "]
[{"$nulls":4},"Pirmdiena"]
[{"$nulls":4},"Otrdiena"]
[{"$nulls":4},"Trešdiena"]
[{"$nulls":4},"Ceturtdiena"]
[{"$nulls":4},"Piektdiena"]
[{"$nulls":4},"Sestdiena"]
[{"$nulls":4},"Svētdiena"]
[{"$nulls":4},"Nedēļas kopējais stundu skaits",{"$f":"SUBTOTAL(109,Septembris[1. nedēļa])","v":{"v":0,"d":"0.0"}},{"$f":"SUBTOTAL(109,Septembris[Virsstundas])","v":{"v":0,"d":"0.0"}},{"$f":"SUBTOTAL(109,Septembris[2. nedēļa])","v":{"v":0,"d":"0.0"}},{"$f":"SUBTOTAL(109,Septembris[[Virsstundas ]])","v":{"v":0,"d":"0.0"}},{"$f":"SUBTOTAL(109,Septembris[3. nedēļa])","v":{"v":0,"d":"0.0"}},{"$f":"SUBTOTAL(109,Septembris[[Virsstundas  ]])","v":{"v":0,"d":"0.0"}},{"$f":"SUBTOTAL(109,Septembris[4. nedēļa])","v":{"v":0,"d":"0.0"}},{"$f":"SUBTOTAL(109,Septembris[[Virsstundas   ]])","v":{"v":0,"d":"0.0"}},{"$f":"SUBTOTAL(109,Septembris[5. nedēļa])","v":{"v":0,"d":"0.0"}},{"$f":"SUBTOTAL(109,Septembris[[Virsstundas    ]])","v":{"v":0,"d":"0.0"}}]
["Septembra kopējās pastāvīgās nostrādātās stundas šūnā F99 un septembra kopējās virsstundas šūnā I99 tiek aprēķinātas automātiski.",{"$nulls":3},{"$f":"TEXT(DATEVALUE(Septembris[[#Headers],[Septembris]]&\" \"&YEAR(TODAY())),\"mmm.\")&\"kopā: Pastāvīgās darba stundas\"","v":"sept.kopā: Pastāvīgās darba stundas"},{"$f":"SUM(Septembris[1. nedēļa],Septembris[2. nedēļa],Septembris[3. nedēļa],Septembris[4. nedēļa],Septembris[5. nedēļa])","v":{"v":0,"d":"0.0"}},{"$f":"TEXT(DATEVALUE(Septembris[[#Headers],[Septembris]]&\" \"&YEAR(TODAY())),\"mmm.\")&\" kopā: Virsstundas\"","v":"sept. kopā: Virsstundas"},null,{"$f":"SUM(Septembris[Virsstundas],Septembris[[Virsstundas ]],Septembris[[Virsstundas  ]],Septembris[[Virsstundas   ]],Septembris[[Virsstundas    ]])","v":{"v":0,"d":"0.0"}}]
["Oktobra, novembra, decembra ceturtā ceturkšņa virsraksts ir šūnā E100. ",{"$nulls":3},"Oktobris, novembris, decembris      Darbinieka darba laika uzskaites karte: Dienas, nedēļas, mēneša, gada"]
["Ievadiet oktobra pastāvīgās nostrādātās stundas un virsstundas tabulā, sākot ar šūnu E101. Nākamais norādījums ir šūnā A110.",{"$nulls":3},"Oktobris","1. nedēļa","Virsstundas","2. nedēļa","Virsstundas ","3. nedēļa","Virsstundas  ","4. nedēļa","Virsstundas   ","5. nedēļa","Virsstundas    "]
[{"$nulls":4},"Pirmdiena"]
[{"$nulls":4},"Otrdiena"]
[{"$nulls":4},"Trešdiena"]
[{"$nulls":4},"Ceturtdiena"]
[{"$nulls":4},"Piektdiena"]
[{"$nulls":4},"Sestdiena"]
[{"$nulls":4},"Svētdiena"]
[{"$nulls":4},"Nedēļas kopējais stundu skaits",{"$f":"SUBTOTAL(109,Oktobris[1. nedēļa])","v":{"v":0,"d":"0.0"}},{"$f":"SUBTOTAL(109,Oktobris[Virsstundas])","v":{"v":0,"d":"0.0"}},{"$f":"SUBTOTAL(109,Oktobris[2. nedēļa])","v":{"v":0,"d":"0.0"}},{"$f":"SUBTOTAL(109,Oktobris[[Virsstundas ]])","v":{"v":0,"d":"0.0"}},{"$f":"SUBTOTAL(109,Oktobris[3. nedēļa])","v":{"v":0,"d":"0.0"}},{"$f":"SUBTOTAL(109,Oktobris[[Virsstundas  ]])","v":{"v":0,"d":"0.0"}},{"$f":"SUBTOTAL(109,Oktobris[4. nedēļa])","v":{"v":0,"d":"0.0"}},{"$f":"SUBTOTAL(109,Oktobris[[Virsstundas   ]])","v":{"v":0,"d":"0.0"}},{"$f":"SUBTOTAL(109,Oktobris[5. nedēļa])","v":{"v":0,"d":"0.0"}},{"$f":"SUBTOTAL(109,Oktobris[[Virsstundas    ]])","v":{"v":0,"d":"0.0"}}]
["Oktobra kopējās pastāvīgās nostrādātās stundas šūnā F110 un oktobra kopējās virsstundas šūnā I110 tiek aprēķinātas automātiski. Nākamais norādījums ir šūnā A112.",{"$nulls":3},{"$f":"TEXT(DATEVALUE(Oktobris[[#Headers],[Oktobris]]&\" \"&YEAR(TODAY())),\"mmm.\")&\"kopā: Pastāvīgās darba stundas\"","v":"okt.kopā: Pastāvīgās darba stundas"},{"$f":"SUM(Oktobris[1. nedēļa],Oktobris[2. nedēļa],Oktobris[3. nedēļa],Oktobris[4. nedēļa],Oktobris[5. nedēļa])","v":{"v":0,"d":"0.0"}},{"$f":"TEXT(DATEVALUE(Oktobris[[#Headers],[Oktobris]]&\" \"&YEAR(TODAY())),\"mmm.\")&\" kopā: Virsstundas\"","v":"okt. kopā: Virsstundas"},null,{"$f":"SUM(Oktobris[Virsstundas],Oktobris[[Virsstundas ]],Oktobris[[Virsstundas  ]],Oktobris[[Virsstundas   ]],Oktobris[[Virsstundas    ]])","v":{"v":0,"d":"0.0"}}]
[]
["Ievadiet novembra pastāvīgās nostrādātās stundas un virsstundas tabulā, sākot ar šūnu E112. Nākamais norādījums ir šūnā A121.",{"$nulls":3},"Novembris","1. nedēļa","Virsstundas","2. nedēļa","Virsstundas ","3. nedēļa","Virsstundas  ","4. nedēļa","Virsstundas    ","5. nedēļa","Virsstundas     "]
[{"$nulls":4},"Pirmdiena"]
[{"$nulls":4},"Otrdiena"]
[{"$nulls":4},"Trešdiena"]
[{"$nulls":4},"Ceturtdiena"]
[{"$nulls":4},"Piektdiena"]
[{"$nulls":4},"Sestdiena"]
[{"$nulls":4},"Svētdiena"]
[{"$nulls":4},"Nedēļas kopējais stundu skaits",{"$f":"SUBTOTAL(109,Novembris[1. nedēļa])","v":{"v":0,"d":"0.0"}},{"$f":"SUBTOTAL(109,Novembris[Virsstundas])","v":{"v":0,"d":"0.0"}},{"$f":"SUBTOTAL(109,Novembris[2. nedēļa])","v":{"v":0,"d":"0.0"}},{"$f":"SUBTOTAL(109,Novembris[[Virsstundas ]])","v":{"v":0,"d":"0.0"}},{"$f":"SUBTOTAL(109,Novembris[3. nedēļa])","v":{"v":0,"d":"0.0"}},{"$f":"SUBTOTAL(109,Novembris[[Virsstundas  ]])","v":{"v":0,"d":"0.0"}},{"$f":"SUBTOTAL(109,Novembris[4. nedēļa])","v":{"v":0,"d":"0.0"}},{"$f":"SUBTOTAL(109,Novembris[[Virsstundas    ]])","v":{"v":0,"d":"0.0"}},{"$f":"SUBTOTAL(109,Novembris[5. nedēļa])","v":{"v":0,"d":"0.0"}},{"$f":"SUBTOTAL(109,Novembris[[Virsstundas     ]])","v":{"v":0,"d":"0.0"}}]
["Novembra kopējās pastāvīgās nostrādātās stundas šūnā F121 un novembra kopējās virsstundas šūnā I121 tiek aprēķinātas automātiski. Nākamais norādījums ir šūnā A123.",{"$nulls":3},{"$f":"TEXT(DATEVALUE(Novembris[[#Headers],[Novembris]]&\" \"&YEAR(TODAY())),\"mmm.\")&\"kopā: Pastāvīgās darba stundas\"","v":"nov.kopā: Pastāvīgās darba stundas"},{"$f":"SUM(Novembris[1. nedēļa],Novembris[2. nedēļa],Novembris[3. nedēļa],Novembris[4. nedēļa],Novembris[5. nedēļa])","v":{"v":0,"d":"0.0"}},{"$f":"TEXT(DATEVALUE(Novembris[[#Headers],[Novembris]]&\" \"&YEAR(TODAY())),\"mmm.\")&\" kopā: Virsstundas\"","v":"nov. kopā: Virsstundas"},null,{"$f":"SUM(Novembris[Virsstundas],Novembris[[Virsstundas ]],Novembris[[Virsstundas  ]],Novembris[[Virsstundas    ]],Novembris[[Virsstundas     ]])","v":{"v":0,"d":"0.0"}}]
[]
["Ievadiet decembra pastāvīgās nostrādātās stundas un virsstundas tabulā, sākot ar šūnu E123. Nākamais norādījums ir šūnā A132.",{"$nulls":3},"Decembris","1. nedēļa","Virsstundas","2. nedēļa","Virsstundas ","3. nedēļa","Virsstundas  ","4. nedēļa","Virsstundas   ","5. nedēļa","Virsstundas    "]
[{"$nulls":4},"Pirmdiena"]
[{"$nulls":4},"Otrdiena"]
[{"$nulls":4},"Trešdiena"]
[{"$nulls":4},"Ceturtdiena"]
[{"$nulls":4},"Piektdiena"]
[{"$nulls":4},"Sestdiena"]
[{"$nulls":4},"Svētdiena"]
[{"$nulls":4},"Nedēļas kopējais stundu skaits",{"$f":"SUBTOTAL(109,Decembris[1. nedēļa])","v":{"v":0,"d":"0.0"}},{"$f":"SUBTOTAL(109,Decembris[Virsstundas])","v":{"v":0,"d":"0.0"}},{"$f":"SUBTOTAL(109,Decembris[2. nedēļa])","v":{"v":0,"d":"0.0"}},{"$f":"SUBTOTAL(109,Decembris[[Virsstundas ]])","v":{"v":0,"d":"0.0"}},{"$f":"SUBTOTAL(109,Decembris[3. nedēļa])","v":{"v":0,"d":"0.0"}},{"$f":"SUBTOTAL(109,Decembris[[Virsstundas  ]])","v":{"v":0,"d":"0.0"}},{"$f":"SUBTOTAL(109,Decembris[4. nedēļa])","v":{"v":0,"d":"0.0"}},{"$f":"SUBTOTAL(109,Decembris[[Virsstundas   ]])","v":{"v":0,"d":"0.0"}},{"$f":"SUBTOTAL(109,Decembris[5. nedēļa])","v":{"v":0,"d":"0.0"}},{"$f":"SUBTOTAL(109,Decembris[[Virsstundas    ]])","v":{"v":0,"d":"0.0"}}]
["Decembra kopējās pastāvīgās nostrādātās stundas šūnā F132 un decembra kopējās virsstundas šūnā I132 tiek aprēķinātas automātiski.",{"$nulls":3},{"$f":"TEXT(DATEVALUE(Decembris[[#Headers],[Decembris]]&\" \"&YEAR(TODAY())),\"mmm.\")&\"kopā: Pastāvīgās darba stundas\"","v":"dec.kopā: Pastāvīgās darba stundas"},{"$f":"SUM(Decembris[1. nedēļa],Decembris[2. nedēļa],Decembris[3. nedēļa],Decembris[4. nedēļa],Decembris[5. nedēļa])","v":{"v":0,"d":"0.0"}},{"$f":"TEXT(DATEVALUE(Decembris[[#Headers],[Decembris]]&\" \"&YEAR(TODAY())),\"mmm.\")&\" kopā: Virsstundas\"","v":"dec. kopā: Virsstundas"},null,{"$f":"SUM(G124:G130,I124:I130,K124:K130,M124:M130,O124:O130)","v":{"v":0,"d":"0.0"}}]